fUST/lending_fUST_20241127
["ID","MTS","AMOUNT","RATE_DAILY","PERIOD"]
[343504869,1732695676556,-502.33706688,0.00027397,3]
[343504870,1732695676578,-500.0,0.00027397,3]
[343504871,1732695676599,-541.79,0.00027397,3]
[343504872,1732695676621,-503.44647652,0.00027397,3]
[343504873,1732695676642,-511.42688583,0.00027397,3]
[343504874,1732695676663,-501.23547662,0.00027397,3]
[343504875,1732695676696,-546.87460285,0.00027397,3]
[343504876,1732695676724,-627.28853011,0.00027397,3]
[343504877,1732695676758,-503.16452516,0.00027397,3]
[343504878,1732695676804,-500.0,0.00027397,3]
[343504879,1732695676856,-505.13350943,0.00027397,3]
[343504880,1732695676880,-500.0,0.00027397,3]
[343504881,1732695676915,-535.31303872,0.00027397,3]
[343504882,1732695676938,-133.23226973,0.00027397,3]
[343504883,1732696032374,-651.669481,0.00024683,2]
[343504884,1732696032395,-707.77393895,0.00025199,2]
[343504885,1732696032416,-300.0,0.00025299,2]
[343504886,1732696032437,-300.0,0.00025299,2]
[343504887,1732696032459,-367.93311187,0.000253,2]
[343504888,1732696032481,-2293.92035344,0.000253,2]
[343504889,1732696051086,-541.7,0.0002529,10]
[343504890,1732696051112,-76.6948137,0.0002529,10]
[343504901,1732696165826,160.257105,0.00013973,2]
[343504955,1732696238316,-1130.9023,0.00022542,2]
[343504957,1732696238328,-1379.8475229,0.00022542,2]
[343504958,1732696238337,-3492.39415486,0.0002277,2]
[343504960,1732696238345,-9338.38735749,0.00023,2]
[343504961,1732696238354,-165.555792,0.0002382,2]
[343504963,1732696238363,-173.1855268,0.00024898,2]
[343504964,1732696238372,-300.0,0.00024998,2]
[343504966,1732696238380,-300.0,0.00024999,2]
[343504967,1732696238390,-10140.51980288,0.00025,2]
[343504969,1732696238403,-233.44,0.0002508,10]
[343504971,1732696238412,-399.73,0.0002508,10]
[343504972,1732696238422,-333.11,0.0002508,10]
[343504974,1732696238431,-245.28874124,0.0002509,2]
[343504976,1732696238440,-130208.80024623,0.0002509,2]
[343504977,1732696238450,-1852.70555964,0.00025268,2]
[343504979,1732696238459,-1136.75457695,0.00025268,2]
[343504980,1732696238468,-219706.07964656,0.000253,2]
[343504982,1732696238477,-651.669481,0.00025368,2]
[343504984,1732696238487,-500.0,0.00025573,2]
[343504985,1732696238496,-1562.618,0.00025613,2]
[343504988,1732696238504,-195.212656,0.00025738,2]
[343504989,1732696238518,-440.93726185,0.00026,2]
[343504992,1732696238527,-2251.88335723,0.00026,3]
[343504994,1732696238537,-651.669481,0.00026053,2]
[343504995,1732696238546,-1852.70555957,0.00026075,2]
[343504997,1732696238555,-500.77126362,0.00026121,2]
[343504999,1732696238565,-160.257105,0.00026274,2]
[343505000,1732696238574,-1136.75457691,0.00026326,2]
[343505002,1732696238583,-654.5999923,0.00026384,2]
[343505003,1732696238592,-1852.70555957,0.00026881,2]
[343505006,1732696238602,-343.37101071,0.00027,60]
[343505009,1732696238611,-420.0,0.00027082,2]
[343505010,1732696238621,-616.0,0.000271,2]
[343505012,1732696238630,-666.0,0.00027297,2]
[343505014,1732696238640,-500.0,0.00027373,2]
[343505015,1732696238649,-500.0,0.00027373,2]
[343505017,1732696238658,-500.0,0.00027373,2]
[343505018,1732696238668,-1136.75457691,0.00027384,2]
[343505020,1732696238677,-475.29037759,0.00027396,2]
[343505022,1732696238688,-490.10615627,0.00027396,2]
[343505023,1732696238698,-500.0,0.00027396,2]
[343505025,1732696238707,-369.94818874,0.00027396,2]
[343505027,1732696238717,-264.96307718,0.00027396,2]
[343505028,1732696238726,-223.73795295,0.00027396,2]
[343505030,1732696238735,-500.0,0.00027396,2]
[343505031,1732696238745,-402.72203976,0.00027397,3]
[343505033,1732696238754,-500.0,0.00027397,3]
[343505035,1732696238763,-501.48719661,0.00027397,3]
[343505036,1732696238773,-500.0,0.00027397,3]
[343505038,1732696238782,-500.0,0.00027397,3]
[343505040,1732696238791,-480.56271,0.00027397,7]
[343505041,1732696238801,-506.87215445,0.00027397,3]
[343505043,1732696238810,-500.0,0.00027397,3]
[343505045,1732696238819,-500.0,0.00027397,3]
[343505046,1732696238829,-588.26805858,0.00027397,3]
[343505048,1732696238838,-480.56271,0.00027397,7]
[343505049,1732696238847,-500.0,0.00027397,3]
[343505051,1732696238856,-500.0,0.00027397,3]
[343505053,1732696238866,-510.68556224,0.00027397,3]
[343505054,1732696238875,-500.0,0.00027397,3]
[343505056,1732696238884,-500.0,0.00027397,3]
[343505058,1732696238894,-500.0,0.00027397,3]
[343505059,1732696238903,-525.79913362,0.00027397,3]
[343505061,1732696238912,-514.15778327,0.00027397,3]
[343505062,1732696238921,-522.20973421,0.00027397,3]
[343505064,1732696238930,-501.91972787,0.00027397,3]
[343505066,1732696238939,-504.04983269,0.00027397,3]
[343505067,1732696238948,-500.0,0.00027397,3]
[343505069,1732696238957,-277.52383174,0.00027397,3]
[343505070,1732696238966,-335.86914202,0.00027397,3]
[343505072,1732696238975,-500.0,0.00027397,3]
[343505074,1732696238984,-151.0,0.00027397,7]
[343505075,1732696238994,-502.11524686,0.00027397,3]
[343505077,1732696239003,-500.0,0.00027397,3]
[343505079,1732696239012,-509.67581729,0.00027397,3]
[343505080,1732696239021,-507.35420635,0.00027397,3]
[343505082,1732696239031,-500.0,0.00027397,3]
[343505083,1732696239040,-500.0,0.00027397,3]
[343505085,1732696239049,-500.0,0.00027397,3]
[343505087,1732696239058,-500.0,0.00027397,3]
[343505088,1732696239067,-500.0,0.00027397,3]
[343505090,1732696239076,-503.08816116,0.00027397,3]
[343505091,1732696239086,-518.73744606,0.00027397,3]
[343505093,1732696239096,-501.13360775,0.00027397,3]
[343505099,1732696239105,-500.0,0.00027397,3]
[343505101,1732696239191,-523.4262718,0.00027397,3]
[343505103,1732696239200,-500.0,0.00027397,3]
[343505105,1732696239211,-506.10484459,0.00027397,3]
[343505106,1732696239220,-500.0,0.00027397,3]
[343505108,1732696239231,-500.0,0.00027397,3]
[343505110,1732696239241,-500.0,0.00027397,3]
[343505111,1732696239250,-639.99704733,0.00027397,3]
[343505113,1732696239259,-500.0,0.00027397,3]
[343505114,1732696239268,-151.0,0.00027397,7]
[343505116,1732696239277,-151.0,0.00027397,7]
[343505118,1732696239287,-500.0,0.00027397,3]
[343505119,1732696239296,-500.0,0.00027397,3]
[343505121,1732696239305,-502.02768346,0.00027397,3]
[343505123,1732696239315,-500.0,0.00027397,3]
[343505124,1732696239324,-1000.0,0.00027397,10]
[343505126,1732696239333,-505.95341196,0.00027397,3]
[343505127,1732696239343,-1000.0,0.00027397,10]
[343505129,1732696239352,-905.25018892,0.00027397,10]
[343505131,1732696239361,-505.67021563,0.00027397,3]
[343505132,1732696239370,-544.58106159,0.00027397,3]
[343505134,1732696239379,-500.0,0.00027397,3]
[343505135,1732696239389,-500.0,0.00027397,3]
[343505137,1732696239398,-500.0,0.00027397,3]
[343505138,1732696239407,-500.0,0.00027397,3]
[343505139,1732696239416,-500.0,0.00027397,3]
[343505140,1732696239426,-500.0,0.00027397,3]
[343505141,1732696239435,-500.0,0.00027397,3]
[343505142,1732696239446,-549.26128374,0.00027397,3]
[343505143,1732696239455,-500.0,0.00027397,3]
[343505144,1732696239465,-506.32619937,0.00027397,3]
[343505145,1732696239474,-514.19980593,0.00027397,3]
[343505146,1732696239484,-500.0,0.00027397,3]
[343505147,1732696239493,-500.0,0.00027397,3]
[343505148,1732696239503,-500.0,0.00027397,3]
[343505149,1732696239517,-500.0,0.00027397,3]
[343505150,1732696239527,-500.0,0.00027397,3]
[343505151,1732696239537,-500.0,0.00027397,3]
[343505152,1732696239547,-500.0,0.00027397,3]
[343505153,1732696239557,-500.0,0.00027397,3]
[343505154,1732696239571,-500.0,0.00027397,3]
[343505155,1732696239580,-204.45,0.00027397,3]
[343505156,1732696239591,-504.51157849,0.00027397,3]
[343505157,1732696239600,-151.0,0.00027397,7]
[343505158,1732696239612,-500.0,0.00027397,3]
[343505159,1732696239622,-500.0,0.00027397,3]
[343505160,1732696239631,-151.0,0.00027397,7]
[343505161,1732696239641,-500.0,0.00027397,3]
[343505162,1732696239651,-500.0,0.00027397,3]
[343505163,1732696239660,-500.0,0.00027397,3]
[343505164,1732696239669,-391.76,0.00027397,3]
[343505165,1732696239679,-500.0,0.00027397,3]
[343505166,1732696239691,-500.0,0.00027397,3]
[343505167,1732696239700,-500.0,0.00027397,3]
[343505168,1732696239710,-635.74,0.00027397,3]
[343505169,1732696239719,-502.60083908,0.00027397,3]
[343505170,1732696239729,-500.0,0.00027397,3]
[343505171,1732696239738,-521.98692025,0.00027397,3]
[343505172,1732696239749,-494.24768574,0.00027397,3]
[343505174,1732696239758,-151.0,0.00027397,7]
[343505175,1732696239768,-506.13041719,0.00027397,3]
[343505176,1732696239777,-290.08595823,0.00027397,3]
[343505177,1732696239786,-502.48025163,0.00027397,3]
[343505178,1732696239795,-500.0,0.00027397,3]
[343505179,1732696239804,-500.0,0.00027397,3]
[343505180,1732696239814,-502.5879529,0.00027397,3]
[343505181,1732696239824,-151.0,0.00027397,7]
[343505182,1732696239833,-505.95417015,0.00027397,3]
[343505183,1732696239843,-151.0,0.00027397,7]
[343505184,1732696239852,-151.0,0.00027397,7]
[343505185,1732696239862,-161.814707,0.00027397,7]
[343505186,1732696239871,-161.814707,0.00027397,7]
[343505187,1732696239880,-500.0,0.00027397,3]
[343505188,1732696239890,-500.0,0.00027397,3]
[343505189,1732696239899,-500.0,0.00027397,3]
[343505190,1732696239909,-500.0,0.00027397,3]
[343505191,1732696239918,-563.72,0.00027397,3]
[343505192,1732696239927,-328.70839201,0.00027397,3]
[343505193,1732696239936,-500.0,0.00027397,3]
[343505194,1732696239946,-500.0,0.00027397,3]
[343505195,1732696239955,-500.0,0.00027397,3]
[343505196,1732696239964,-500.0,0.00027397,3]
[343505197,1732696239973,-167.06636152,0.00027397,3]
[343505198,1732696239982,-517.733469,0.00027397,3]
[343505199,1732696239991,-150.0,0.00027397,3]
[343505200,1732696240000,-500.0,0.00027397,3]
[343505201,1732696240009,-502.89963698,0.00027397,3]
[343505202,1732696240018,-503.90755872,0.00027397,3]
[343505203,1732696240027,-500.0,0.00027397,3]
[343505204,1732696240036,-271.4,0.00027397,3]
[343505205,1732696240045,-512.71422551,0.00027397,3]
[343505206,1732696240054,-507.25396791,0.00027397,3]
[343505207,1732696240063,-500.0,0.00027397,3]
[343505208,1732696240072,-151.0,0.00027397,7]
[343505209,1732696240081,-503.81124429,0.00027397,3]
[343505210,1732696240090,-502.27263558,0.00027397,3]
[343505211,1732696240099,-500.0,0.00027397,3]
[343505212,1732696240108,-500.0,0.00027397,3]
[343505213,1732696240117,-500.0,0.00027397,3]
[343505214,1732696240126,-513.31638733,0.00027397,3]
[343505215,1732696240135,-500.0,0.00027397,3]
[343505216,1732696240147,-500.0,0.00027397,3]
[343505217,1732696240156,-500.0,0.00027397,3]
[343505218,1732696240165,-500.0,0.00027397,3]
[343505219,1732696240177,-391.41416097,0.00027397,3]
[343505220,1732696240187,-324.18656449,0.00027397,3]
[343505221,1732696240196,-517.11409044,0.00027397,3]
[343505222,1732696240206,-516.05458862,0.00027397,3]
[343505223,1732696240215,-506.15347826,0.00027397,3]
[343505224,1732696240227,-1533.659596,0.00027397,7]
[343505225,1732696240237,-1533.659596,0.00027397,7]
[343505226,1732696240246,-189.89248132,0.00027397,2]
[343505227,1732696240255,-500.0,0.00027397,3]
[343505228,1732696240265,-500.0,0.00027397,3]
[343505229,1732696240274,-500.0,0.00027397,3]
[343505230,1732696240283,-500.0,0.00027397,3]
[343505231,1732696240292,-500.0,0.00027397,3]
[343505232,1732696240302,-500.0,0.00027397,3]
[343505233,1732696240312,-506.01056506,0.00027397,3]
[343505234,1732696240321,-500.0,0.00027397,3]
[343505235,1732696240331,-500.0,0.00027397,3]
[343505236,1732696240340,-500.0,0.00027397,3]
[343505237,1732696240350,-500.0,0.00027397,3]
[343505238,1732696240359,-500.0,0.00027397,3]
[343505239,1732696240368,-491.17283318,0.00027397,3]
[343505240,1732696240379,-500.0,0.00027397,3]
[343505241,1732696240388,-500.0,0.00027397,3]
[343505242,1732696240398,-186.32636346,0.00027397,3]
[343505243,1732696240408,-265.1825889,0.00027397,3]
[343505244,1732696240418,-151.0,0.00027397,7]
[343505245,1732696240427,-500.0,0.00027397,3]
[343505246,1732696240437,-500.0,0.00027397,3]
[343505247,1732696240446,-500.0,0.00027397,3]
[343505248,1732696240456,-500.0,0.00027397,3]
[343505249,1732696240465,-508.4229907,0.00027397,3]
[343505250,1732696240474,-508.25884752,0.00027397,3]
[343505251,1732696240483,-500.0,0.00027397,3]
[343505253,1732696240492,-500.0,0.00027397,3]
[343505255,1732696240501,-500.0,0.00027397,3]
[343505257,1732696240510,-500.0,0.00027397,3]
[343505258,1732696240519,-500.0,0.00027397,3]
[343505260,1732696240528,-500.0,0.00027397,3]
[343505261,1732696240537,-505.957828,0.00027397,3]
[343505262,1732696240546,-500.0,0.00027397,3]
[343505263,1732696240555,-577.72571443,0.00027397,3]
[343505264,1732696240564,-500.0,0.00027397,3]
[343505265,1732696240573,-503.25783671,0.00027397,3]
[343505266,1732696240583,-500.0,0.00027397,3]
[343505267,1732696240592,-500.0,0.00027397,3]
[343505268,1732696240602,-500.0,0.00027397,3]
[343505269,1732696240611,-500.0,0.00027397,3]
[343505270,1732696240621,-500.0,0.00027397,3]
[343505271,1732696240630,-500.0,0.00027397,3]
[343505272,1732696240639,-613.66664093,0.00027397,3]
[343505273,1732696240649,-504.25563386,0.00027397,3]
[343505274,1732696240658,-506.38283541,0.00027397,3]
[343505275,1732696240732,-537.54789437,0.00027397,3]
[343505276,1732696240742,-500.0,0.00027397,3]
[343505277,1732696240751,-500.0,0.00027397,3]
[343505279,1732696240760,-500.0,0.00027397,3]
[343505280,1732696240769,-569.40515294,0.00027397,3]
[343505282,1732696240778,-357.84069784,0.00027397,3]
[343505284,1732696240788,-500.0,0.00027397,3]
[343505285,1732696240797,-500.0,0.00027397,3]
[343505286,1732696240805,-500.0,0.00027397,3]
[343505287,1732696240814,-500.0,0.00027397,3]
[343505288,1732696240823,-500.0,0.00027397,3]
[343505290,1732696240833,-500.0,0.00027397,3]
[343505292,1732696240842,-505.12106572,0.00027397,3]
[343505293,1732696240852,-500.0,0.00027397,3]
[343505294,1732696240861,-526.00057024,0.00027397,3]
[343505295,1732696240870,-504.14856933,0.00027397,3]
[343505296,1732696240879,-500.0,0.00027397,3]
[343505297,1732696240889,-500.0,0.00027397,3]
[343505298,1732696240899,-454.51,0.00027397,3]
[343505299,1732696240908,-500.0,0.00027397,3]
[343505300,1732696240917,-500.0,0.00027397,3]
[343505301,1732696240927,-500.0,0.00027397,3]
[343505302,1732696240937,-500.0,0.00027397,3]
[343505303,1732696240946,-500.0,0.00027397,3]
[343505304,1732696240955,-500.0,0.00027397,3]
[343505305,1732696240965,-500.0,0.00027397,3]
[343505306,1732696240974,-500.0,0.00027397,3]
[343505307,1732696240983,-508.19047764,0.00027397,3]
[343505308,1732696240992,-500.0,0.00027397,3]
[343505309,1732696241002,-500.0,0.00027397,3]
[343505310,1732696241011,-503.27129465,0.00027397,3]
[343505311,1732696241020,-500.0,0.00027397,3]
[343505312,1732696241030,-508.90959534,0.00027397,3]
[343505313,1732696241039,-500.0,0.00027397,3]
[343505314,1732696241050,-413.94650565,0.00027397,2]
[343505315,1732696241059,-500.0,0.00027397,3]
[343505316,1732696241070,-636.92632358,0.00027397,3]
[343505317,1732696241080,-507.04131182,0.00027397,3]
[343505318,1732696241090,-3162.451046,0.00027397,7]
[343505319,1732696241099,-500.0,0.00027397,3]
[343505320,1732696241109,-506.25244076,0.00027397,3]
[343505321,1732696241119,-511.31939357,0.00027397,3]
[343505322,1732696241128,-506.52214374,0.00027397,3]
[343505323,1732696241138,-3162.451046,0.00027397,7]
[343505324,1732696241151,-506.59005621,0.00027397,3]
[343505325,1732696241160,-151.0,0.00027397,7]
[343505326,1732696241170,-500.0,0.00027397,3]
[343505327,1732696241179,-500.0,0.00027397,3]
[343505328,1732696241189,-500.0,0.00027397,3]
[343505329,1732696241198,-500.0,0.00027397,3]
[343505330,1732696241207,-500.0,0.00027397,3]
[343505331,1732696241217,-500.0,0.00027397,3]
[343505332,1732696241227,-500.0,0.00027397,3]
[343505333,1732696241236,-500.0,0.00027397,3]
[343505334,1732696241246,-500.0,0.00027397,3]
[343505335,1732696241255,-500.0,0.00027397,3]
[343505336,1732696241265,-180.38311121,0.00027397,3]
[343505337,1732696241274,-500.0,0.00027397,3]
[343505338,1732696241283,-500.0,0.00027397,3]
[343505339,1732696241293,-500.0,0.00027397,3]
[343505340,1732696241302,-500.0,0.00027397,3]
[343505341,1732696241312,-500.0,0.00027397,3]
[343505342,1732696241322,-500.0,0.00027397,3]
[343505343,1732696241331,-500.0,0.00027397,3]
[343505344,1732696241341,-500.0,0.00027397,3]
[343505345,1732696241350,-686.16,0.00027397,3]
[343505346,1732696241359,-509.74087638,0.00027397,3]
[343505347,1732696241368,-686.16,0.00027397,3]
[343505348,1732696241377,-686.16,0.00027397,3]
[343505349,1732696241386,-686.16,0.00027397,3]
[343505350,1732696241396,-686.16,0.00027397,3]
[343505351,1732696241405,-686.16,0.00027397,3]
[343505352,1732696241416,-686.16,0.00027397,3]
[343505353,1732696241430,-686.16,0.00027397,3]
[343505354,1732696241445,-686.16,0.00027397,3]
[343505355,1732696241458,-500.0,0.00027397,3]
[343505356,1732696241470,-686.16,0.00027397,3]
[343505357,1732696241484,-686.16,0.00027397,3]
[343505358,1732696241497,-500.0,0.00027397,3]
[343505359,1732696241511,-686.16,0.00027397,3]
[343505360,1732696241526,-500.0,0.00027397,3]
[343505361,1732696241541,-686.16,0.00027397,3]
[343505362,1732696241556,-500.0,0.00027397,3]
[343505363,1732696241569,-686.16,0.00027397,3]
[343505364,1732696241582,-500.0,0.00027397,3]
[343505365,1732696241593,-686.16,0.00027397,3]
[343505366,1732696241607,-507.91234404,0.00027397,3]
[343505367,1732696241620,-508.59796121,0.00027397,3]
[343505368,1732696241632,-686.16,0.00027397,3]
[343505369,1732696241642,-686.16,0.00027397,3]
[343505370,1732696241655,-686.16,0.00027397,3]
[343505371,1732696241667,-151.0,0.00027397,7]
[343505372,1732696241680,-686.16,0.00027397,3]
[343505373,1732696241694,-686.16,0.00027397,3]
[343505374,1732696241707,-686.16,0.00027397,3]
[343505375,1732696241721,-500.0,0.00027397,3]
[343505376,1732696241736,-500.0,0.00027397,3]
[343505377,1732696241748,-686.16,0.00027397,3]
[343505378,1732696241759,-500.0,0.00027397,3]
[343505379,1732696241769,-686.16,0.00027397,3]
[343505380,1732696241782,-686.25610996,0.00027397,3]
[343505381,1732696241797,-500.0,0.00027397,3]
[343505382,1732696241812,-500.0,0.00027397,3]
[343505383,1732696241822,-153.73,0.00027397,3]
[343505384,1732696241834,-500.0,0.00027397,3]
[343505385,1732696241846,-500.0,0.00027397,3]
[343505386,1732696241860,-500.0,0.00027397,3]
[343505387,1732696241871,-500.0,0.00027397,3]
[343505388,1732696241882,-500.0,0.00027397,3]
[343505389,1732696241894,-500.0,0.00027397,3]
[343505390,1732696241907,-365.53131392,0.00027397,3]
[343505391,1732696241920,-500.0,0.00027397,3]
[343505392,1732696241933,-500.0,0.00027397,3]
[343505393,1732696241946,-500.0,0.00027397,3]
[343505394,1732696241958,-500.0,0.00027397,3]
[343505395,1732696241969,-500.0,0.00027397,3]
[343505396,1732696241982,-500.0,0.00027397,3]
[343505397,1732696241993,-500.0,0.00027397,3]
[343505398,1732696242004,-500.0,0.00027397,3]
[343505399,1732696242016,-500.0,0.00027397,3]
[343505400,1732696242028,-189.01343883,0.00027397,3]
[343505401,1732696242040,-500.0,0.00027397,3]
[343505402,1732696242051,-500.0,0.00027397,3]
[343505403,1732696242063,-500.0,0.00027397,3]
[343505404,1732696242074,-500.0,0.00027397,3]
[343505405,1732696242085,-500.0,0.00027397,3]
[343505406,1732696242100,-502.54332718,0.00027397,3]
[343505407,1732696242118,-500.0,0.00027397,3]
[343505408,1732696242130,-500.0,0.00027397,3]
[343505409,1732696242141,-500.0,0.00027397,3]
[343505410,1732696242155,-547.22513204,0.00027397,3]
[343505411,1732696242167,-500.0,0.00027397,3]
[343505412,1732696242179,-500.0,0.00027397,3]
[343505413,1732696242191,-500.0,0.00027397,3]
[343505414,1732696242203,-503.19095983,0.00027397,3]
[343505415,1732696242214,-500.0,0.00027397,3]
[343505416,1732696242226,-500.0,0.00027397,3]
[343505417,1732696242237,-500.0,0.00027397,3]
[343505418,1732696242248,-500.0,0.00027397,3]
[343505419,1732696242259,-500.0,0.00027397,3]
[343505420,1732696242281,-500.0,0.00027397,3]
[343505421,1732696242292,-500.0,0.00027397,3]
[343505422,1732696242304,-502.1834594,0.00027397,3]
[343505423,1732696242406,-500.0,0.00027397,3]
[343505424,1732696242415,-500.0,0.00027397,3]
[343505425,1732696242425,-500.0,0.00027397,3]
[343505426,1732696242434,-500.0,0.00027397,3]
[343505427,1732696242444,-500.0,0.00027397,3]
[343505428,1732696242453,-500.0,0.00027397,3]
[343505429,1732696242462,-188.16926831,0.00027397,3]
[343505430,1732696242471,-500.0,0.00027397,3]
[343505431,1732696242481,-500.0,0.00027397,3]
[343505432,1732696242490,-500.0,0.00027397,3]
[343505433,1732696242499,-500.0,0.00027397,3]
[343505434,1732696242508,-500.0,0.00027397,3]
[343505435,1732696242518,-500.0,0.00027397,3]
[343505436,1732696242527,-500.0,0.00027397,3]
[343505437,1732696242536,-243.89224138,0.00027397,3]
[343505438,1732696242545,-185.36724438,0.00027397,3]
[343505439,1732696242554,-568.78129625,0.00027397,3]
[343505440,1732696242564,-524.15767686,0.00027397,3]
[343505441,1732696242573,-500.0,0.00027397,3]
[343505442,1732696242582,-515.64171914,0.00027397,3]
[343505443,1732696242592,-500.0,0.00027397,3]
[343505444,1732696242601,-500.0,0.00027397,3]
[343505445,1732696242610,-500.0,0.00027397,3]
[343505446,1732696242619,-500.0,0.00027397,3]
[343505447,1732696242628,-500.84466553,0.00027397,3]
[343505448,1732696242638,-637.1,0.00027397,3]
[343505449,1732696242647,-503.38666903,0.00027397,3]
[343505450,1732696242656,-508.37288066,0.00027397,3]
[343505451,1732696242665,-500.0,0.00027397,3]
[343505452,1732696242674,-231.32472963,0.00027397,3]
[343505453,1732696242683,-501.29653527,0.00027397,3]
[343505454,1732696242694,-513.82896918,0.00027397,3]
[343505455,1732696242703,-512.06789989,0.00027397,3]
[343505456,1732696242713,-2595.421533,0.00027397,7]
[343505457,1732696242722,-503.2896301,0.00027397,3]
[343505458,1732696242731,-500.0,0.00027397,3]
[343505459,1732696242741,-504.35235922,0.00027397,3]
[343505460,1732696242750,-500.0,0.00027397,3]
[343505461,1732696242760,-505.9390044,0.00027397,3]
[343505462,1732696242770,-502.70186916,0.00027397,3]
[343505463,1732696242779,-2595.421533,0.00027397,7]
[343505464,1732696242789,-416.13098303,0.00027397,3]
[343505465,1732696242798,-500.0,0.00027397,3]
[343505466,1732696242808,-508.01281609,0.00027397,3]
[343505467,1732696242817,-517.28,0.00027397,3]
[343505468,1732696242826,-500.0,0.00027397,3]
[343505470,1732696242835,-500.0,0.00027397,3]
[343505471,1732696242845,-500.0,0.00027397,3]
[343505472,1732696242854,-239.37883813,0.00027397,3]
[343505473,1732696242863,-506.0098842,0.00027397,3]
[343505474,1732696242872,-172.15415157,0.00027397,3]
[343505477,1732696242995,-400.28852653,0.00027397,3]
[343505478,1732696243005,-500.0,0.00027397,3]
[343505479,1732696243015,-502.80348716,0.00027397,3]
[343505480,1732696243024,-500.0,0.00027397,3]
[343505481,1732696243034,-500.0,0.00027397,3]
[343505482,1732696243044,-500.0,0.00027397,3]
[343505483,1732696243053,-500.0,0.00027397,3]
[343505484,1732696243063,-502.78835234,0.00027397,3]
[343505485,1732696243072,-500.0,0.00027397,3]
[343505486,1732696243081,-500.0,0.00027397,3]
[343505488,1732696243091,-500.0,0.00027397,3]
[343505490,1732696243100,-500.0,0.00027397,3]
[343505492,1732696243109,-467.54831443,0.00027397,3]
[343505493,1732696243118,-516.06598328,0.00027397,3]
[343505494,1732696243127,-502.69376787,0.00027397,3]
[343505495,1732696243136,-501.8289266,0.00027397,3]
[343505496,1732696243146,-500.0,0.00027397,3]
[343505497,1732696243157,-500.0,0.00027397,3]
[343505498,1732696243167,-506.14727586,0.00027397,3]
[343505499,1732696243176,-324.84285744,0.00027397,3]
[343505500,1732696243187,-500.0,0.00027397,3]
[343505502,1732696243197,-500.0,0.00027397,3]
[343505503,1732696243207,-500.0,0.00027397,3]
[343505505,1732696243217,-500.0,0.00027397,3]
[343505507,1732696243231,-500.0,0.00027397,3]
[343505508,1732696243242,-500.0,0.00027397,3]
[343505509,1732696243253,-500.0,0.00027397,3]
[343505510,1732696243263,-500.0,0.00027397,3]
[343505511,1732696243272,-450.71714264,0.00027397,3]
[343505512,1732696243281,-501.56557853,0.00027397,3]
[343505513,1732696243290,-502.21642557,0.00027397,3]
[343505514,1732696243299,-345.8463111,0.00027397,3]
[343505515,1732696243309,-500.0,0.00027397,3]
[343505516,1732696243319,-500.0,0.00027397,3]
[343505517,1732696243328,-518.42094336,0.00027397,3]
[343505518,1732696243337,-501.53659346,0.00027397,3]
[343505519,1732696243346,-500.0,0.00027397,3]
[343505520,1732696243355,-500.0,0.00027397,3]
[343505521,1732696243365,-500.0,0.00027397,3]
[343505522,1732696243374,-500.0,0.00027397,3]
[343505523,1732696243383,-500.0,0.00027397,3]
[343505524,1732696243392,-462.15282342,0.00027397,3]
[343505526,1732696243401,-500.0,0.00027397,3]